bitfinex-derivatives/quotes_SOLF0:USTF0_20251107
["timestamp","ask_amount","ask_price","bid_price","bid_amount"]
[1762530402174,0.04541717,154.26,154.22,0.04905537]
[1762530403575,5.8392,154.25,154.22,0.04905537]
[1762530403882,0.04541717,154.26,154.22,0.04905537]
[1762530404070,5.8396,154.24,154.22,0.04905537]
[1762530405682,5.88421717,154.26,154.22,0.04905537]
[1762530405883,0.04541717,154.26,154.22,0.04905537]
[1762530406181,5.8396,154.24,154.22,0.04905537]
[1762530406383,0.04541717,154.26,154.22,0.04905537]
[1762530406984,0.04541717,154.26,154.22,3.24905537]
[1762530408289,0.04541717,154.26,154.22,0.04905537]
[1762530408882,5.8396,154.24,154.22,0.04905537]
[1762530409987,5.8396,154.24,154.07,301.5]
[1762530409988,1.3,154.23,154.14,3.2]
[1762530410282,90.8299,154.25,154.08,3.2]
[1762530410590,4.56493567,154.24,154.08,3.2]
[1762530410888,4.56493567,154.26,154.13,3.2]
[1762530411083,0.04725355,154.21,154.18,0.04386729]
[1762530411289,5.841,154.2,154.18,0.04386729]
[1762530411991,0.04725355,154.21,154.18,0.04386729]
[1762530412588,5.8411,154.2,154.18,0.04386729]
[1762530412789,0.04725355,154.21,154.18,0.04386729]
[1762530412990,0.04725355,154.21,154.18,3.24386729]
[1762530413386,0.04725355,154.21,154.18,0.04386729]
[1762530414488,0.04725355,154.21,154.18,3.24386729]
[1762530415884,16.23727481,154.32,154.18,3.24386729]
[1762530416089,16.23727481,154.32,154.2,5.8408]
[1762530416287,16.23727481,154.32,154.18,3.2]
[1762530416288,4.56397481,154.32,154.18,3.2]
[1762530416487,5.8391,154.25,154.18,9.0414]
[1762530416693,5.8391,154.25,154.19,3.2]
[1762530416997,0.04242607,154.24,154.21,3.2]
[1762530417191,0.04729,154.24,154.21,3.24677432]
[1762530418796,1.12818518,154.34,154.21,3.24677432]
[1762530418998,1.12818518,154.34,154.21,3.2]
[1762530419297,5.838,154.28,154.22,3.2]
[1762530419488,4.56397481,154.33,154.13,3.2]
[1762530419688,0.04535827,154.25,154.21,0.04596794]
[1762530419887,0.04499338,154.25,154.21,0.04191068]
[1762530420492,0.04499338,154.25,154.21,3.24191068]
[1762530420998,0.04499338,154.25,154.21,0.04191068]
[1762530421494,0.04499338,154.25,154.21,3.08191068]
[1762530422395,0.04499338,154.25,154.21,0.04191068]
[1762530422693,5.84,154.23,154.21,0.04191068]
[1762530422886,0.04499338,154.25,154.21,3.08191068]
[1762530423699,4.56397481,154.33,154.21,3.08191068]
[1762530423891,1.12809375,154.37,154.21,3.04]
[1762530424089,4.56397481,154.36,154.21,3.04]
[1762530424290,1.12809375,154.37,154.21,3.04]
[1762530424291,11.6715,154.34,154.21,3.04]
[1762530424489,4.56397481,154.33,154.21,3.04]
[1762530424697,4.56397481,154.32,154.25,0.04549649]
[1762530424899,5.8372,154.3,154.27,0.04563328]
[1762530425104,4.56397481,154.35,154.27,0.04128368]
[1762530425395,5.8371,154.3,154.29,0.04430266]
[1762530425796,4.56397481,154.36,154.29,0.04430266]
[1762530425995,4.56397481,154.36,154.29,3.08430266]
[1762530426205,4.56397481,154.42,154.29,3.08430266]
[1762530426389,4.56397481,154.41,154.34,0.04831712]
[1762530426587,4.56397481,154.41,154.32,3.04]
[1762530426588,4.56397481,154.4,154.36,0.04759386]
[1762530426801,4.56397481,154.42,154.36,0.04759386]
[1762530427000,5.8341,154.39,154.36,0.04759386]
[1762530427198,4.56397481,154.45,154.36,3.08759386]
[1762530427399,4.56397481,154.45,154.36,3.04]
[1762530427594,67.16,154.46,154.39,0.04738227]
[1762530428203,11.6586,154.51,154.39,3.08738227]
[1762530428501,11.6586,154.51,154.43,0.04918758]
[1762530428502,4.58561921,154.5,154.43,0.04918758]
[1762530428698,5.8317,154.45,154.43,0.04918758]
[1762530428899,4.58561921,154.48,154.42,0.04941463]
[1762530429110,4.58561921,154.47,154.43,3.08354725]
[1762530429401,5.8314,154.46,154.43,0.0430684]
[1762530429605,4.58561921,154.51,154.39,3.04]
[1762530429809,5.8317,154.45,154.43,0.04368038]
[1762530430013,4.58561921,154.49,154.42,0.04127981]
[1762530430200,4.58561921,154.48,154.44,0.04156642]
[1762530430502,4.58561921,154.52,154.44,0.04156642]
[1762530430701,5.8315,154.45,154.44,0.04156642]
[1762530432703,4.58561921,154.52,154.44,0.04156642]
[1762530432907,4.58561921,154.51,154.44,0.04156642]
[1762530433206,5.8312,154.46,154.44,0.04156642]
[1762530434008,4.58561921,154.45,154.34,3.04]
[1762530434204,4.58561921,154.49,154.34,3.04]
[1762530434394,11.6597,154.5,154.34,3.04]
[1762530434395,4.58561921,154.48,154.34,3.04]
[1762530434598,4.58561921,154.47,154.34,8.8754]
[1762530434795,4.58561921,154.46,154.34,3.04]
[1762530435005,90.6924,154.49,154.38,0.04988216]
[1762530435006,0.04194819,154.42,154.38,0.04988216]
[1762530435305,0.04194819,154.42,154.39,3.04]
[1762530435810,0.04194819,154.42,154.38,3.0850262]
[1762530436200,5.87474819,154.42,154.38,3.0850262]
[1762530436407,0.04194819,154.42,154.38,3.0850262]
[1762530437601,0.04194819,154.42,154.39,3.04]
[1762530440416,0.04194819,154.42,154.38,3.0850262]
[1762530441406,4.58540022,154.48,154.38,3.0850262]
[1762530441708,4.58451348,154.52,154.41,3.04]
[1762530441911,4.58451348,154.51,154.41,3.04]
[1762530442219,5.8298,154.5,154.44,8.8718]
[1762530442403,4.57819782,154.53,154.41,3.04]
[1762530442610,4.57819782,154.52,154.45,0.04213231]
[1762530442805,4.57819782,154.51,154.45,0.04213231]
[1762530443006,68.2867788,154.54,154.45,0.04213231]
[1762530443007,4.57819782,154.53,154.45,0.04213231]
[1762530443216,68.2867788,154.54,154.45,3.08213231]
[1762530443515,5.96575997,154.66,154.48,3.04]
[1762530443711,71.65410384,154.65,154.48,3.04]
[1762530443900,5.829,154.52,154.44,3.04]
[1762530444210,4.57410384,154.61,154.44,3.04]
[1762530444509,4.57410384,154.6,154.44,3.04]
[1762530444707,4.57410384,154.61,154.5,3.04]
[1762530444907,0.04869363,154.57,154.54,0.04243579]
[1762530445401,5.8273,154.56,154.54,0.04243579]
[1762530447418,0.04869363,154.57,154.54,0.04243579]
[1762530448507,5.8275,154.56,154.54,0.04243579]
[1762530449512,1.3,154.56,154.46,3.04]
[1762530449716,16.22500384,154.62,154.46,8.8708]
[1762530449905,5.8282,154.54,154.47,3.04]
[1762530450109,11.6509,154.61,154.48,3.04]
[1762530450513,0.04402736,154.56,154.53,0.04551573]
[1762530451014,5.8279,154.55,154.53,0.04551573]
[1762530452611,0.04402736,154.56,154.53,0.04551573]
[1762530454120,5.8279,154.55,154.53,0.04551573]
[1762530455114,1.3,154.55,154.42,3.13]
[1762530455319,90.6151,154.62,154.42,3.13]
[1762530455320,90.635,154.58,154.42,3.13]
[1762530455520,90.6271,154.6,154.42,3.13]
[1762530455521,11.6543,154.57,154.42,3.13]
[1762530455818,11.6543,154.57,154.43,3.13]
[1762530456020,11.6546,154.56,154.43,3.13]
[1762530456322,5.87417236,154.51,154.48,0.04635391]
[1762530456721,0.04497236,154.51,154.48,3.17635391]
[1762530457119,1.12617715,154.64,154.48,3.17635391]
[1762530457316,5.827,154.57,154.51,8.9591]
[1762530457523,1.12617715,154.64,154.52,3.13]
[1762530457825,1.12617715,154.64,154.42,3.13]
[1762530458014,5.8282,154.54,154.48,3.13]
[1762530458319,11.6502,154.62,154.48,3.13]
[1762530458520,11.6502,154.62,154.5,3.13]
[1762530458715,0.04343895,154.57,154.54,0.04459058]
[1762530459114,5.828,154.55,154.54,0.04459058]
[1762530459622,5.8296,154.5,154.45,3.13]
[1762530459925,90.6232,154.61,154.45,3.13]
[1762530460321,90.6302,154.59,154.45,3.13]
[1762530461013,0.04567134,154.54,154.5,0.04640297]
[1762530461218,0.0437737,154.54,154.5,0.045934]
[1762530461420,5.829,154.52,154.5,0.045934]
[1762530462322,0.0437737,154.54,154.5,3.115934]
[1762530462823,5.8286,154.53,154.5,3.115934]
[1762530463420,0.0437737,154.54,154.5,0.045934]
[1762530463726,0.0437737,154.54,154.5,3.115934]
[1762530463926,0.0437737,154.54,154.5,0.045934]
[1762530464429,5.829,154.52,154.5,0.045934]
[1762530465125,11.6497,154.63,154.5,3.115934]
[1762530465326,1.12617715,154.64,154.5,3.07]
[1762530466233,67.0,154.65,154.5,3.07]
[1762530466426,0.04367534,154.59,154.56,3.07]
[1762530466624,0.04367534,154.59,154.56,3.11350649]
[1762530466826,5.8249,154.63,154.56,3.11350649]
[1762530467024,67.0,154.65,154.56,3.11350649]
[1762530467229,67.0,154.65,154.56,0.04350649]
[1762530467430,67.0,154.65,154.57,3.07]
[1762530467628,67.0,154.65,154.53,3.07]
[1762530467823,5.8263,154.59,154.57,0.04107919]
[1762530469134,0.04469842,154.61,154.57,0.04107919]
[1762530469632,5.8263,154.59,154.57,0.04107919]
[1762530469928,0.04469842,154.61,154.57,0.04107919]
[1762530470127,0.04469842,154.61,154.57,3.11107919]
[1762530470721,5.87019842,154.61,154.57,3.11107919]
[1762530471129,0.04469842,154.61,154.57,3.11107919]
[1762530473429,5.87019842,154.61,154.57,3.11107919]
[1762530474033,5.8259,154.6,154.57,3.11107919]
[1762530474230,0.04469842,154.61,154.57,0.04107919]
[1762530474632,5.8264,154.59,154.57,0.04107919]
[1762530476230,5.8283,154.54,154.49,262.96828507]
[1762530476440,96.59636946,154.64,154.5,3.07]
[1762530476629,96.60686946,154.62,154.49,262.96828507]
[1762530476825,5.8294,154.51,154.49,262.96828507]
[1762530477036,96.62566946,154.59,154.42,3.07]
[1762530477334,5.8292,154.51,154.49,0.04219526]
[1762530477638,5.8292,154.51,154.48,3.11358364]
[1762530477835,5.8297,154.5,154.48,3.1146813]
[1762530478137,5.8297,154.5,154.48,0.0446813]
[1762530478536,0.04158942,154.51,154.48,0.0446813]
[1762530478751,0.04158942,154.51,154.48,3.1146813]
[1762530480030,0.04158942,154.51,154.48,0.0446813]
[1762530480742,0.04158942,154.51,154.48,3.1146813]
[1762530482434,0.04158942,154.51,154.48,0.0446813]
[1762530482631,5.8297,154.5,154.48,0.0446813]
[1762530483439,0.04158942,154.51,154.48,0.0446813]
[1762530483848,5.8324,154.43,154.38,3.06]
[1762530484341,11.6594,154.5,154.38,3.06]
[1762530484531,5.99196946,154.52,154.33,7.95084094]
[1762530484532,96.67326946,154.51,154.33,3.06]
[1762530484729,90.6759,154.52,154.33,3.06]
[1762530484730,5.99196946,154.48,154.33,3.06]
[1762530484930,5.8326,154.43,154.4,0.04461974]
[1762530485343,0.04598847,154.44,154.4,0.04461974]
[1762530485839,0.04598847,154.44,154.4,3.10461974]
[1762530486144,5.87798847,154.44,154.4,3.10461974]
[1762530486448,0.04598847,154.44,154.4,0.04461974]
[1762530487238,0.04598847,154.44,154.32,3.06]
[1762530487543,11.6636,154.45,154.32,3.06]
[1762530487746,5.8336,154.4,154.32,3.06]
[1762530488038,92.27467303,154.47,154.32,3.06]
[1762530488039,17.67379085,154.46,154.32,3.06]
[1762530488242,0.04090949,154.41,154.37,0.04118692]
[1762530488639,0.04090949,154.41,154.37,3.10118692]
[1762530490033,0.04090949,154.41,154.37,0.04118692]
[1762530490542,0.04090949,154.41,154.37,3.10118692]
[1762530490543,5.87410949,154.41,154.37,3.10118692]
[1762530491139,5.8335,154.4,154.37,3.10118692]
[1762530491345,0.04090949,154.41,154.37,3.10118692]
[1762530491838,0.04090949,154.41,154.37,0.04118692]
[1762530493544,5.8339,154.39,154.37,0.04118692]
[1762530493734,0.04090949,154.41,154.37,0.04118692]
[1762530493940,0.04090949,154.41,154.37,3.10118692]
[1762530494940,5.87400949,154.41,154.37,3.10118692]
[1762530495248,5.87400949,154.41,154.37,0.04118692]
[1762530495441,0.04090949,154.41,154.37,3.10118692]
[1762530495747,0.04090949,154.41,154.37,0.04118692]
[1762530495948,0.04090949,154.41,154.37,3.10118692]
[1762530496753,64.86,154.51,154.37,3.10118692]
[1762530496954,64.86,154.51,154.37,3.06]
[1762530497251,64.86,154.51,154.39,3.06]
[1762530497840,0.04183561,154.47,154.43,3.1048769]
[1762530498050,0.04884557,154.47,154.43,0.04274041]
[1762530498246,5.8316,154.45,154.43,0.04274041]
[1762530499851,1.3,154.44,154.34,3.06]
[1762530500049,90.7127,154.45,154.3,368.3898012]
[1762530500350,11.665,154.43,154.3,368.3898012]
[1762530500755,5.835,154.36,154.3,371.4498012]
[1762530501048,0.0485062,154.35,154.31,3.1089194]
[1762530501246,5.8362,154.33,154.31,0.0489194]
[1762530502452,0.0485062,154.35,154.31,0.0489194]
[1762530502756,0.0485062,154.35,154.31,3.1089194]
[1762530502957,5.98511249,154.51,154.31,3.1089194]
[1762530503257,90.6817,154.51,154.33,3.06]
[1762530503447,5.98511249,154.52,154.33,3.06]
[1762530503648,5.98511249,154.52,154.35,3.06]
[1762530503851,11.6611,154.48,154.35,3.06]
[1762530504146,11.6611,154.48,154.4,0.04866645]
[1762530504147,5.8331,154.41,154.4,0.04866645]
[1762530504749,7.1331,154.41,154.4,0.04866645]
[1762530505065,5.8331,154.41,154.4,0.04866645]
[1762530505957,7.1331,154.41,154.4,0.04866645]
[1762530506165,1.3,154.41,154.31,3.06]
[1762530506464,67.02,154.42,154.31,3.06]
[1762530507049,0.04730485,154.38,154.35,0.04659298]
[1762530507854,5.8352,154.36,154.35,0.04659298]
[1762530508252,5.8361,154.33,154.28,3.06]
[1762530509156,0.04695058,154.32,154.29,3.10161931]
[1762530509359,0.04405782,154.32,154.29,3.10577669]
[1762530510151,0.04405782,154.32,154.29,0.04577669]
[1762530510749,5.8369,154.31,154.29,0.04577669]
[1762530513263,5.8369,154.31,154.29,0.04577669]
[1762530515466,0.04405782,154.32,154.29,3.29577669]
[1762530516262,0.04405782,154.32,154.29,0.04577669]
[1762530516967,5.8369,154.31,154.29,0.04577669]
[1762530517354,1.3,154.31,154.21,374.24218774]
[1762530517558,11.6729,154.32,154.21,374.24218774]
[1762530518058,11.6729,154.32,154.22,3.25]
[1762530518257,5.8388,154.26,154.25,0.04967075]
[1762530519461,0.0451159,154.29,154.25,3.29967075]
[1762530519861,5.8384,154.27,154.25,3.29967075]
[1762530520072,5.8384,154.27,154.25,0.04967075]
[1762530522558,5.8384,154.27,154.25,3.29967075]
[1762530522760,5.8829159,154.29,154.25,3.29967075]
[1762530522959,0.0451159,154.29,154.25,3.29967075]
[1762530523156,5.8384,154.27,154.25,3.29967075]
[1762530523361,5.8384,154.27,154.25,0.04967075]
[1762530525372,0.0451159,154.29,154.25,0.04967075]
[1762530526273,5.8384,154.27,154.25,0.04967075]
[1762530529673,0.0451159,154.29,154.25,3.01967075]
[1762530530768,5.8349,154.36,154.28,2.97]
[1762530530968,67.04,154.38,154.28,2.97]
[1762530531468,5.8368,154.32,154.28,2.97]
[1762530531778,78.7086,154.38,154.28,2.97]
[1762530532675,67.04,154.38,154.28,2.97]
[1762530533177,5.8361,154.33,154.28,2.97]
[1762530533366,67.04,154.38,154.28,2.97]
[1762530533776,67.04,154.38,154.29,2.97]
[1762530534779,5.8353,154.35,154.29,2.97]
[1762530534978,67.04,154.38,154.29,2.97]
[1762530535470,0.04651706,154.35,154.32,3.01561467]
[1762530539372,0.04651706,154.35,154.33,5.8359]
[1762530539578,0.04651706,154.35,154.34,2.97]
[1762530540080,11.6618,154.47,154.36,2.97]
[1762530540376,67.02,154.46,154.36,2.97]
[1762530540578,5.834,154.39,154.36,2.97]
[1762530540785,67.02,154.46,154.36,2.97]
[1762530540973,17.64371249,154.51,154.36,2.97]
[1762530541176,0.0410188,154.43,154.4,2.97]
[1762530541371,0.04823865,154.43,154.4,3.01587195]
[1762530541580,0.04823865,154.43,154.4,3.13587195]
[1762530542179,5.8329,154.42,154.4,0.04587195]
[1762530542482,0.04823865,154.43,154.4,3.13587195]
[1762530544275,67.0,154.52,154.4,3.13587195]
[1762530544485,67.0,154.52,154.4,3.09]
[1762530545079,11.656,154.55,154.4,3.09]
[1762530545279,0.0452333,154.49,154.46,0.04477851]
[1762530545583,0.0439249,154.49,154.46,0.04539933]
[1762530545787,0.0439249,154.49,154.38,3.09]
[1762530545983,5.8311,154.47,154.4,3.09]
[1762530546176,67.0,154.54,154.4,3.09]
[1762530546683,0.04737811,154.49,154.45,3.13371562]
[1762530546877,5.98511249,154.6,154.45,3.13371562]
[1762530547089,7.92925611,154.62,154.45,3.13371562]
[1762530547090,66.98,154.59,154.45,3.09]
[1762530547478,99.30511249,154.64,154.47,3.09]
[1762530547792,93.32,154.64,154.47,3.09]
[1762530548092,0.04718446,154.57,154.54,3.13661443]
[1762530548276,0.04175969,154.57,154.54,3.13637034]
[1762530548477,0.04175969,154.57,154.54,0.04637034]
[1762530549081,5.8275,154.56,154.54,0.04637034]
[1762530549486,0.04175969,154.57,154.44,3.09]
[1762530549683,11.6506,154.62,154.44,3.09]
[1762530550089,90.6156,154.62,154.44,3.09]
[1762530550280,90.6108,154.63,154.44,3.09]
[1762530550480,0.04562519,154.55,154.52,0.04510325]
[1762530550681,5.8293,154.51,154.47,3.09]
[1762530550886,0.04548804,154.55,154.43,378.95173752]
[1762530551187,5.8304,154.48,154.47,0.04556647]
[1762530551389,0.04362333,154.51,154.46,0.04194503]
[1762530551585,0.04091862,154.5,154.46,0.04194503]
[1762530551892,0.04091862,154.5,154.39,3.09]
[1762530552089,90.6659,154.53,154.39,3.09]
[1762530552682,5.8328,154.42,154.39,3.09]
[1762530552880,5.87494292,154.42,154.39,3.13354725]
[1762530553294,0.04214292,154.42,154.39,3.13354725]
[1762530553490,5.98511249,154.59,154.39,3.13354725]
[1762530553695,5.8305,154.48,154.4,3.09]
[1762530553889,11.6551,154.56,154.4,3.09]
[1762530554094,11.92,154.58,154.4,3.09]
[1762530554293,11.92,154.58,154.44,3.09]
[1762530554694,11.92,154.58,154.49,3.13217552]
[1762530554695,0.04983892,154.53,154.49,3.13217552]
[1762530554900,0.04417452,154.53,154.49,3.13217552]
[1762530556592,0.04417452,154.53,154.49,0.04217552]
[1762530558009,5.8295,154.51,154.49,0.04217552]
[1762530558304,0.04417452,154.53,154.49,0.04217552]
[1762530558497,5.8291,154.52,154.49,0.04217552]
[1762530558904,0.04417452,154.53,154.49,3.13217552]
[1762530561805,5.8294,154.51,154.49,0.04217552]
[1762530562402,5.87287452,154.53,154.49,3.13217552]
[1762530562806,0.04417452,154.53,154.49,3.13217552]
[1762530564914,0.04417452,154.53,154.51,3.09]
[1762530566113,0.04417452,154.53,154.49,0.04217552]
[1762530566516,0.04417452,154.53,154.49,3.13217552]
[1762530566717,0.04417452,154.53,154.49,0.04217552]
[1762530566921,5.8296,154.51,154.49,0.04217552]
[1762530567309,0.04417452,154.53,154.49,0.04217552]
[1762530567516,0.04417452,154.53,154.49,3.13217552]
[1762530567713,0.04417452,154.53,154.49,0.04217552]
[1762530567913,5.8294,154.51,154.49,0.04217552]
[1762530568312,0.04417452,154.53,154.49,0.04217552]
[1762530568505,0.04417452,154.53,154.49,3.13217552]
[1762530569111,5.829,154.52,154.49,3.13217552]
[1762530569719,5.8293,154.51,154.49,3.13217552]
[1762530570414,5.87287452,154.53,154.49,3.13217552]
[1762530570917,0.04417452,154.53,154.49,3.13217552]
[1762530574621,0.04417452,154.53,154.49,8.96197552]
[1762530574809,0.04417452,154.53,154.5,3.18]
[1762530575827,0.04417452,154.53,154.51,3.18]
[1762530576016,0.04417452,154.53,154.49,3.22217552]
[1762530576325,0.04417452,154.53,154.5,3.18]
[1762530576718,0.04417452,154.53,154.5,9.0095]
[1762530576924,0.04417452,154.53,154.51,3.18]
[1762530577117,0.00417452,154.53,154.51,3.18]
[1762530577323,11.6506,154.62,154.52,3.18]
[1762530577524,66.94,154.64,154.52,3.18]
[1762530577717,1.12590388,154.65,154.52,3.18]
[1762530577919,72.86511249,154.71,154.58,3.18]
[1762530578120,1.12563074,154.7,154.58,3.18]
[1762530578320,0.04202542,154.66,154.62,0.04370368]
[1762530578515,5.87025024,154.66,154.62,3.22370368]
[1762530578719,0.04655024,154.66,154.62,3.22370368]
[1762530578923,0.04655024,154.66,154.62,0.04370368]
[1762530579128,0.04655024,154.66,154.62,3.22370368]
[1762530580217,0.04655024,154.66,154.62,0.04370368]
[1762530580620,5.8241,154.65,154.62,0.04370368]
[1762530580920,0.04655024,154.66,154.62,0.04370368]
[1762530583023,5.8244,154.64,154.62,0.04370368]
[1762530584828,0.04655024,154.66,154.62,3.17370368]
[1762530585223,1.12524857,154.74,154.62,3.17370368]
[1762530585427,5.98511249,154.8,154.67,3.13]
[1762530585727,11.89388416,154.84,154.67,3.13]
[1762530585728,72.82511249,154.81,154.67,3.13]
[1762530585916,1.12486666,154.79,154.63,3.13]
[1762530586119,26.71408547,154.79,154.63,3.13]
[1762530586522,0.04812802,154.73,154.69,3.17443839]
[1762530586730,0.04812802,154.73,154.69,3.17988245]
[1762530587518,5.98511249,154.85,154.69,7.70988245]
[1762530587726,5.98511249,154.87,154.69,0.04988245]
[1762530587928,5.98511249,154.87,154.74,3.13]
[1762530588627,5.98511249,154.86,154.74,3.13]
[1762530588821,0.04159305,154.82,154.79,0.04180296]
[1762530589134,5.98511249,154.86,154.72,3.13]
[1762530589326,5.98511249,154.81,154.72,3.13]
[1762530589523,4.84975022,154.8,154.79,0.04768751]
[1762530589831,4.84975022,154.8,154.78,0.04516317]
[1762530590032,4.84975022,154.8,154.72,3.13]
[1762530590033,4.80258529,154.79,154.72,3.13]
[1762530590324,6.03227742,154.8,154.77,0.04238281]
[1762530590325,4.80258529,154.78,154.77,0.04238281]
[1762530590519,4.80258529,154.79,154.77,0.04238281]
[1762530590829,4.80258529,154.78,154.77,0.04238281]
[1762530591035,0.04716493,154.8,154.77,3.17238281]
[1762530591036,4.22879834,154.8,154.77,3.17238281]
[1762530591349,0.04716493,154.8,154.77,3.17238281]
[1762530594129,0.04716493,154.8,154.77,0.04238281]
[1762530594926,5.86556493,154.8,154.77,0.04238281]
[1762530595333,0.04716493,154.8,154.77,0.04238281]
[1762530595836,0.04716493,154.8,154.77,3.17238281]
[1762530596025,0.04716493,154.8,154.77,0.04238281]
[1762530596228,1.34716493,154.8,154.71,378.01271789]
[1762530596431,0.04716493,154.8,154.71,378.01271789]
[1762530597128,0.04716493,154.8,154.74,0.04787246]
[1762530597328,5.8199,154.76,154.74,0.04787246]
[1762530597524,0.04120453,154.77,154.74,0.04787246]
[1762530598132,0.04120453,154.77,154.75,3.13]
[1762530598332,0.04120453,154.77,154.74,0.04787246]
[1762530599036,5.8201,154.76,154.74,0.04787246]
[1762530599528,0.04120453,154.77,154.74,3.17787246]
[1762530601129,0.04120453,154.77,154.74,0.04787246]
[1762530601532,5.8201,154.76,154.74,0.04787246]
[1762530601741,0.04120453,154.77,154.74,0.04787246]
[1762530602147,5.82,154.76,154.74,0.04787246]
[1762530602442,0.04120453,154.77,154.65,3.09]
[1762530602647,9.60081388,154.78,154.65,3.09]
[1762530603344,0.04699332,154.73,154.7,0.04430025]
[1762530604244,0.04699332,154.73,154.7,3.13430025]
[1762530604544,9.60081388,154.83,154.7,3.13430025]
[1762530604742,9.60081388,154.79,154.66,3.09]
[1762530605334,0.04222318,154.74,154.71,0.0418719]
[1762530606646,0.04222318,154.74,154.71,3.1318719]
[1762530607145,9.60081388,154.84,154.71,3.1318719]
[1762530607344,9.60081388,154.84,154.71,3.09]
[1762530607552,9.60081388,154.88,154.74,3.09]
[1762530608137,9.60081388,154.88,154.75,3.09]
[1762530608343,0.04297923,154.83,154.79,0.04833723]
[1762530608540,0.04297923,154.83,154.79,3.13833723]
[1762530609146,5.8155,154.88,154.81,3.09]
[1762530609540,1.12426705,154.93,154.81,3.09]
[1762530609748,5.94342098,155.1,154.84,3.09]
[1762530609937,9.60081388,155.03,154.84,3.09]
[1762530610138,90.3536,155.07,154.89,5.8148]
[1762530610139,10.7240286,155.04,154.89,5.8148]
[1762530610344,10.7240286,155.04,154.93,3.09]
[1762530610345,1.12321472,155.04,154.93,3.09]
[1762530610540,11.62081388,155.09,154.93,3.09]
[1762530610736,5.808,155.08,154.97,3.13285405]
[1762530610946,11.62081388,155.09,154.97,3.09]
[1762530611147,1.12277985,155.1,154.97,3.09]
[1762530611449,1.12277985,155.1,155.01,0.04160581]
[1762530611839,5.81,155.03,155.01,0.04160581]
[1762530612253,1.3,155.02,154.88,3.09]
[1762530612554,9.60081388,155.05,154.89,3.09]
[1762530613053,5.8086,155.06,154.94,3.09]
[1762530613348,0.04245256,155.02,154.98,3.13781783]
[1762530613651,1.12277985,155.1,154.98,3.09]
[1762530613855,76.34081388,155.13,154.98,3.09]
[1762530614057,9.60081388,155.09,154.98,3.09]
[1762530614537,9.60081388,155.09,155.02,0.04318255]
[1762530614946,1.12258065,155.1,155.02,0.04318255]
[1762530614947,10.72339453,155.1,155.02,0.04318255]
[1762530615744,90.2423,155.26,155.03,3.09]
[1762530616054,90.2425,155.26,155.13,0.04262729]
[1762530616256,90.2334,155.27,155.18,0.04829488]
[1762530616566,90.2233,155.29,155.18,0.04829488]
[1762530616855,9.60081388,155.3,155.15,3.09]
[1762530617051,99.82041388,155.3,155.15,3.09]
[1762530617357,90.2225,155.29,155.21,0.04321786]
[1762530617750,90.2225,155.29,155.1,3.09]
[1762530617947,90.2449,155.25,155.1,3.09]
[1762530618147,90.2453,155.25,155.1,3.09]
[1762530618343,90.2286,155.28,155.05,3.09]
[1762530618344,90.2757,155.2,155.05,3.09]
[1762530618548,99.87311388,155.21,155.05,3.09]
[1762530618747,5.8057,155.14,155.11,0.04107249]
[1762530618955,5.8057,155.14,155.11,0.04817573]
[1762530619456,5.6379,155.14,155.11,0.04817573]
[1762530619657,0.04416804,155.15,155.11,0.04817573]
[1762530620856,0.04416804,155.15,155.11,3.13817573]
[1762530621653,9.60081388,155.26,155.11,3.13817573]
[1762530621852,5.8037,155.19,155.11,3.09]
[1762530622153,90.2572,155.23,155.07,3.09]
[1762530622656,9.60081388,155.26,155.13,0.0443271]
[1762530622854,9.60081388,155.26,155.18,0.04082901]
[1762530623257,29.05595822,155.29,155.18,0.04082901]
[1762530623455,29.05595822,155.29,155.22,0.04940711]
[1762530623758,29.05595822,155.29,155.24,0.04881926]
[1762530623954,29.05595822,155.29,155.25,0.00475926]
[1762530624255,90.2332,155.27,155.14,3.09]
[1762530624557,119.28125822,155.29,155.14,3.09]
[1762530624763,9.60081388,155.29,155.14,3.09]
[1762530624954,90.2081,155.32,155.14,3.09]
[1762530624955,99.80891388,155.32,155.14,3.09]
[1762530625154,0.04342754,155.23,155.2,0.04266586]
[1762530625362,0.04342754,155.23,155.2,0.0473553]